fUST/lending_fUST_20240814
["ID","MTS","AMOUNT","RATE_DAILY","PERIOD"]
[334798435,1723581039897,-500.0,0.00011002,2]
[334798436,1723581039907,-500.0,0.00011581,2]
[334798437,1723581039924,-587.0,0.00012098,2]
[334798438,1723581039933,-500.0,0.00012191,2]
[334798439,1723581039943,-500.0,0.00012801,2]
[334798440,1723581039951,-500.0,0.00012986,2]
[334798441,1723581039964,-251.64143621,0.00013,2]
[334798442,1723581039975,-823.0,0.00013307,2]
[334798443,1723581039984,-260.4169051,0.00013352,2]
[334798444,1723581039996,-150.112233,0.000134,2]
[334798445,1723581040005,-500.0,0.00013441,2]
[334798446,1723581040014,-1376.81357914,0.00013573,2]
[334798447,1723581040026,-728.23,0.00013573,2]
[334798565,1723581045929,-8245.21170482,0.00013573,2]
[334798566,1723581045939,-3111.19491287,0.00013576,2]
[334798568,1723581045949,-10350.25528394,0.00013579,2]
[334798569,1723581045960,-10350.25528394,0.00013586,2]
[334798570,1723581045970,-33643.74410912,0.00013588,2]
[334798571,1723581045980,-10350.25528394,0.00013592,2]
[334798572,1723581045989,-1717.00324029,0.00013598,2]
[334798573,1723581046000,-10350.25528394,0.00013598,2]
[334798574,1723581046013,-150.112233,0.000136,2]
[334798575,1723581046024,-42463.71990205,0.0001367,2]
[334798576,1723581046034,-358216.654791,0.0001367,2]
[334798577,1723581046044,-200.0,0.00013673,2]
[334798578,1723581046056,-99037.72489927,0.0001368,2]
[334798579,1723581046067,-151.0,0.00013688,2]
[334798580,1723581046078,-151.0,0.00013688,2]
[334798581,1723581046090,-119405.551597,0.00013688,2]
[334798582,1723581046100,-151.0,0.00013698,2]
[334798583,1723581046110,-226.5,0.00013698,2]
[334798584,1723581046119,-306.74703003,0.00013698,2]
[334798585,1723581046130,-177.39229974,0.00013698,2]
[334798586,1723581046141,-500.0,0.00013698,2]
[334798587,1723581046150,-500.0,0.00013698,2]
[334798588,1723581046160,-500.0,0.00013698,2]
[334798589,1723581046171,-500.0,0.00013698,2]
[334798590,1723581046182,-500.0,0.00013698,2]
[334798591,1723581046192,-500.0,0.00013698,2]
[334798592,1723581046203,-500.0,0.00013698,2]
[334798593,1723581046218,-500.0,0.00013698,2]
[334798594,1723581046230,-500.0,0.00013698,2]
[334798595,1723581046240,-500.0,0.00013698,2]
[334798596,1723581046251,-500.0,0.00013698,2]
[334798597,1723581046261,-500.0,0.00013698,2]
[334798598,1723581046271,-500.0,0.00013698,2]
[334798599,1723581046281,-628.32259407,0.00013698,2]
[334798600,1723581046292,-500.0,0.00013698,2]
[334798601,1723581046304,-500.0,0.00013698,2]
[334798602,1723581046315,-500.0,0.00013698,2]
[334798603,1723581046326,-500.0,0.00013698,2]
[334798604,1723581046336,-500.0,0.00013698,2]
[334798605,1723581046348,-500.0,0.00013698,2]
[334798606,1723581046358,-500.0,0.00013698,2]
[334798607,1723581046368,-500.0,0.00013698,2]
[334798608,1723581046378,-727.41,0.00013698,2]
[334798609,1723581046388,-500.0,0.00013698,2]
[334798610,1723581046400,-500.0,0.00013698,2]
[334798611,1723581046410,-592.35350795,0.00013698,2]
[334798612,1723581046420,-500.0,0.00013698,2]
[334798613,1723581046429,-500.0,0.00013698,2]
[334798614,1723581046439,-500.0,0.00013698,2]
[334798615,1723581046448,-500.0,0.00013698,2]
[334798616,1723581046458,-500.0,0.00013698,2]
[334798617,1723581046467,-500.0,0.00013698,2]
[334798618,1723581046477,-500.0,0.00013698,2]
[334798619,1723581046486,-500.0,0.00013698,2]
[334798620,1723581046497,-500.0,0.00013698,2]
[334798621,1723581046508,-500.0,0.00013698,2]
[334798622,1723581046518,-500.0,0.00013698,2]
[334798623,1723581046529,-500.0,0.00013698,2]
[334798624,1723581046539,-324.25006526,0.00013698,2]
[334798625,1723581046550,-500.0,0.00013698,2]
[334798626,1723581046560,-154.76012181,0.00013698,2]
[334798627,1723581046571,-506.69,0.00013698,2]
[334798628,1723581046581,-500.0,0.00013698,2]
[334798629,1723581046590,-500.0,0.00013698,2]
[334798630,1723581046599,-500.0,0.00013698,2]
[334798631,1723581046613,-500.0,0.00013698,2]
[334798632,1723581046630,-500.0,0.00013698,2]
[334798633,1723581046642,-500.0,0.00013698,2]
[334798634,1723581046652,-512.14111745,0.00013698,2]
[334798635,1723581046664,-500.0,0.00013698,2]
[334798636,1723581046674,-500.0,0.00013698,2]
[334798637,1723581046684,-500.0,0.00013698,2]
[334798638,1723581046695,-500.0,0.00013698,2]
[334798639,1723581046705,-500.0,0.00013698,2]
[334798640,1723581046715,-500.0,0.00013698,2]
[334798641,1723581046724,-500.0,0.00013698,2]
[334798642,1723581046733,-500.0,0.00013698,2]
[334798643,1723581046743,-500.0,0.00013698,2]
[334798644,1723581046753,-500.0,0.00013698,2]
[334798645,1723581046763,-500.0,0.00013698,2]
[334798646,1723581046772,-500.0,0.00013698,2]
[334798647,1723581046781,-500.0,0.00013698,2]
[334798648,1723581046793,-500.0,0.00013698,2]
[334798649,1723581046803,-500.0,0.00013698,2]
[334798650,1723581046815,-500.0,0.00013698,2]
[334798651,1723581046824,-500.0,0.00013698,2]
[334798652,1723581046834,-500.0,0.00013698,2]
[334798653,1723581046844,-500.0,0.00013698,2]
[334798654,1723581046855,-500.0,0.00013698,2]
[334798655,1723581046866,-500.0,0.00013698,2]
[334798656,1723581046877,-500.0,0.00013698,2]
[334798657,1723581046887,-500.0,0.00013698,2]
[334798658,1723581046899,-500.0,0.00013698,2]
[334798659,1723581046910,-500.0,0.00013698,2]
[334798660,1723581046922,-500.0,0.00013698,2]
[334798661,1723581046932,-500.0,0.00013698,2]
[334798662,1723581046942,-500.0,0.00013698,2]
[334798663,1723581046952,-500.0,0.00013698,2]
[334798664,1723581046963,-500.0,0.00013698,2]
[334798665,1723581046975,-500.0,0.00013698,2]
[334798666,1723581046985,-166.92149566,0.00013698,2]
[334798667,1723581046997,-500.0,0.00013698,2]
[334798668,1723581047009,-500.0,0.00013698,2]
[334798669,1723581047019,-500.0,0.00013698,2]
[334798670,1723581047030,-500.0,0.00013698,2]
[334798671,1723581047040,-505.80875923,0.00013698,2]
[334798672,1723581047051,-500.0,0.00013698,2]
[334798673,1723581047061,-500.0,0.00013698,2]
[334798674,1723581047072,-500.0,0.00013698,2]
[334798675,1723581047082,-1399.82,0.00013698,2]
[334798676,1723581047092,-616.01,0.00013698,2]
[334798677,1723581047103,-500.0,0.00013698,2]
[334798678,1723581047113,-1514.14,0.00013698,2]
[334798679,1723581047124,-500.0,0.00013698,2]
[334798680,1723581047134,-500.0,0.00013698,2]
[334798681,1723581047144,-500.0,0.00013698,2]
[334798682,1723581047155,-500.0,0.00013698,2]
[334798683,1723581047166,-500.0,0.00013698,2]
[334798684,1723581047178,-500.0,0.00013698,2]
[334798685,1723581047188,-500.0,0.00013698,2]
[334798686,1723581047200,-536.12,0.00013698,2]
[334798687,1723581047210,-500.0,0.00013698,2]
[334798688,1723581047222,-500.0,0.00013698,2]
[334798689,1723581047233,-500.0,0.00013698,2]
[334798690,1723581047244,-500.0,0.00013698,2]
[334798691,1723581047253,-568.59,0.00013698,2]
[334798692,1723581047264,-324.23796146,0.00013698,2]
[334798693,1723581047273,-500.0,0.00013698,2]
[334798694,1723581047284,-1514.77,0.00013698,2]
[334798695,1723581047294,-542.35532028,0.00013698,2]
[334798696,1723581047304,-500.0,0.00013698,2]
[334798697,1723581047314,-500.0,0.00013698,2]
[334798698,1723581047325,-565.43,0.00013698,2]
[334798699,1723581047334,-500.0,0.00013698,2]
[334798700,1723581047343,-500.0,0.00013698,2]
[334798701,1723581047352,-505.81,0.00013698,2]
[334798702,1723581047362,-500.0,0.00013698,2]
[334798703,1723581047371,-500.0,0.00013698,2]
[334798704,1723581047382,-500.0,0.00013698,2]
[334798705,1723581047392,-527.38,0.00013698,2]
[334798706,1723581047401,-595.22,0.00013698,2]
[334798707,1723581047411,-500.0,0.00013698,2]
[334798708,1723581047420,-500.0,0.00013698,2]
[334798709,1723581047430,-502.11332486,0.00013698,2]
[334798710,1723581047439,-500.0,0.00013698,2]
[334798711,1723581047451,-500.0,0.00013698,2]
[334798712,1723581047460,-1937.15,0.00013698,2]
[334798713,1723581047470,-491.83768491,0.00013698,2]
[334798714,1723581047479,-500.0,0.00013698,2]
[334798715,1723581047489,-500.0,0.00013698,2]
[334798716,1723581047498,-638.22,0.00013698,2]
[334798717,1723581047508,-500.0,0.00013698,2]
[334798718,1723581047519,-500.0,0.00013698,2]
[334798719,1723581047530,-500.0,0.00013698,2]
[334798720,1723581047541,-500.0,0.00013698,2]
[334798721,1723581047551,-824.25,0.00013698,2]
[334798722,1723581047561,-500.0,0.00013698,2]
[334798723,1723581047572,-500.0,0.00013698,2]
[334798724,1723581047583,-809.45,0.00013698,2]
[334798725,1723581047592,-387.4372361,0.00013698,2]
[334798726,1723581047603,-767.67,0.00013698,2]
[334798727,1723581047619,-3041.09,0.00013698,2]
[334798728,1723581047636,-1166.91,0.00013698,2]
[334798729,1723581047651,-2778.21,0.00013698,2]
[334798730,1723581047663,-500.0,0.00013698,2]
[334798731,1723581047677,-500.0,0.00013698,2]
[334798732,1723581047691,-866.51,0.00013698,2]
[334798733,1723581047705,-511.61,0.00013698,2]
[334798734,1723581047715,-500.0,0.00013698,2]
[334798735,1723581047724,-500.0,0.00013698,2]
[334798736,1723581047735,-500.0,0.00013698,2]
[334798737,1723581047747,-500.0,0.00013698,2]
[334798738,1723581047757,-500.0,0.00013698,2]
[334798739,1723581047768,-500.0,0.00013698,2]
[334798740,1723581047779,-500.0,0.00013698,2]
[334798741,1723581047791,-500.0,0.00013698,2]
[334798742,1723581047803,-500.0,0.00013698,2]
[334798743,1723581047816,-500.0,0.00013698,2]
[334798744,1723581047827,-500.0,0.00013698,2]
[334798745,1723581047839,-500.0,0.00013698,2]
[334798746,1723581047851,-648.91,0.00013698,2]
[334798747,1723581047863,-509.02,0.00013698,2]
[334798748,1723581047878,-986.88,0.00013698,2]
[334798749,1723581047888,-500.0,0.00013698,2]
[334798750,1723581047900,-3000.0,0.00013699,2]
[334798751,1723581047912,-168.944669,0.00013699,2]
[334798752,1723581047926,-226.47118897,0.00013699,2]
[334798753,1723581047938,-151.0,0.000137,2]
[334798754,1723581047950,-150.112233,0.000137,2]
[334798755,1723581047962,-150.112233,0.000138,2]
[334798756,1723581047974,-151.0,0.00013962,2]
[334798757,1723581047986,-500.0,0.00013972,2]
[334798758,1723581047998,-727.41,0.00013972,2]
[334798759,1723581048009,-500.0,0.00013972,2]
[334798760,1723581048021,-500.0,0.00013972,2]
[334798761,1723581048031,-500.0,0.00013972,2]
[334798762,1723581048043,-500.0,0.00013972,2]
[334798763,1723581048054,-624.21351807,0.00013972,2]
[334798764,1723581048066,-506.69,0.00013972,2]
[334798765,1723581048079,-500.0,0.00013972,2]
[334798766,1723581048089,-500.0,0.00013972,2]
[334798767,1723581048101,-500.0,0.00013972,2]
[334798768,1723581048113,-500.0,0.00013972,2]
[334798769,1723581048124,-500.0,0.00013972,2]
[334798770,1723581048136,-500.0,0.00013972,2]
[334798771,1723581048149,-500.0,0.00013972,2]
[334798772,1723581048160,-500.0,0.00013972,2]
[334798773,1723581048173,-500.0,0.00013972,2]
[334798774,1723581048187,-500.0,0.00013972,2]
[334798775,1723581048199,-500.0,0.00013972,2]
[334798776,1723581048212,-500.0,0.00013972,2]
[334798777,1723581048225,-500.0,0.00013972,2]
[334798778,1723581048238,-500.0,0.00013972,2]
[334798779,1723581048249,-500.0,0.00013972,2]
[334798780,1723581048260,-500.0,0.00013972,2]
[334798781,1723581048269,-500.0,0.00013972,2]
[334798782,1723581048279,-500.0,0.00013972,2]
[334798783,1723581048290,-500.0,0.00013972,2]
[334798784,1723581048302,-500.0,0.00013972,2]
[334798785,1723581048314,-500.0,0.00013972,2]
[334798786,1723581048328,-500.0,0.00013972,2]
[334798787,1723581048341,-500.0,0.00013972,2]
[334798788,1723581048352,-500.0,0.00013972,2]
[334798789,1723581048365,-1399.82,0.00013972,2]
[334798790,1723581048375,-616.01,0.00013972,2]
[334798791,1723581048387,-500.0,0.00013972,2]
[334798792,1723581048398,-1514.14,0.00013972,2]
[334798793,1723581048410,-500.0,0.00013972,2]
[334798794,1723581048422,-500.0,0.00013972,2]
[334798795,1723581048434,-500.0,0.00013972,2]
[334798796,1723581048448,-500.0,0.00013972,2]
[334798797,1723581048460,-500.0,0.00013972,2]
[334798798,1723581048471,-536.12,0.00013972,2]
[334798799,1723581048483,-418.3531945,0.00013972,2]
[334798800,1723581048493,-500.0,0.00013972,2]
[334798801,1723581048505,-568.59,0.00013972,2]
[334798802,1723581048515,-1514.77,0.00013972,2]
[334798803,1723581048526,-500.0,0.00013972,2]
[334798804,1723581048537,-500.0,0.00013972,2]
[334798805,1723581048549,-565.43,0.00013972,2]
[334798806,1723581048561,-500.0,0.00013972,2]
[334798807,1723581048573,-500.0,0.00013972,2]
[334798808,1723581048585,-505.81,0.00013972,2]
[334798809,1723581048596,-500.0,0.00013972,2]
[334798810,1723581048611,-500.0,0.00013972,2]
[334798811,1723581048625,-527.38,0.00013972,2]
[334798812,1723581048636,-595.22,0.00013972,2]
[334798813,1723581048648,-500.0,0.00013972,2]
[334798814,1723581048661,-500.0,0.00013972,2]
[334798815,1723581048688,-500.0,0.00013972,2]
[334798816,1723581048699,-500.0,0.00013972,2]
[334798817,1723581048710,-1937.15,0.00013972,2]
[334798818,1723581048723,-500.0,0.00013972,2]
[334798819,1723581048735,-500.0,0.00013972,2]
[334798820,1723581048746,-638.22,0.00013972,2]
[334798821,1723581048757,-500.0,0.00013972,2]
[334798822,1723581048768,-824.25,0.00013972,2]
[334798823,1723581048779,-500.0,0.00013972,2]
[334798824,1723581048790,-809.45,0.00013972,2]
[334798825,1723581048801,-767.67,0.00013972,2]
[334798826,1723581048813,-3041.09,0.00013972,2]
[334798827,1723581048824,-1166.91,0.00013972,2]
[334798828,1723581048836,-2778.21,0.00013972,2]
[334798829,1723581048847,-500.0,0.00013972,2]
[334798830,1723581048858,-500.0,0.00013972,2]
[334798831,1723581048870,-866.51,0.00013972,2]
[334798832,1723581048880,-511.61,0.00013972,2]
[334798833,1723581048891,-500.0,0.00013972,2]
[334798834,1723581048903,-500.0,0.00013972,2]
[334798835,1723581048914,-500.0,0.00013972,2]
[334798836,1723581048925,-500.0,0.00013972,2]
[334798837,1723581048942,-500.0,0.00013972,2]
[334798838,1723581048954,-500.0,0.00013972,2]
[334798839,1723581048965,-500.0,0.00013972,2]
[334798840,1723581048976,-500.0,0.00013972,2]
[334798841,1723581048987,-500.0,0.00013972,2]
[334798842,1723581048998,-500.0,0.00013972,2]
[334798843,1723581049008,-500.0,0.00013972,2]
[334798844,1723581049019,-648.91,0.00013972,2]
[334798845,1723581049031,-509.02,0.00013972,2]
[334798846,1723581049043,-986.88,0.00013972,2]
[334798847,1723581049054,-151.0,0.00013973,2]
[334798848,1723581049065,-20000.0,0.00014,2]
[334798849,1723581049076,-150.112233,0.00014,2]
[334798850,1723581049087,-5323.40502986,0.00014001,2]
[334798851,1723581049099,-150.112233,0.000141,2]
[334798852,1723581049110,-500.0,0.00014113,2]
[334798853,1723581049121,-158.0,0.0001424,2]
[334798854,1723581049132,-151.0,0.00014246,2]
[334798855,1723581049142,-157.200858,0.00014246,2]
[334798856,1723581049154,-157.200858,0.00014246,2]
[334798857,1723581049165,-151.0,0.00014246,2]
[334798858,1723581049175,-202.525779,0.00014246,2]
[334798859,1723581049187,-202.525779,0.00014246,2]
[334798860,1723581049200,-500.0,0.00014246,2]
[334798861,1723581049212,-727.41,0.00014246,2]
[334798862,1723581049225,-151.0,0.00014246,2]
[334798863,1723581049236,-500.0,0.00014246,2]
[334798864,1723581049248,-500.0,0.00014246,2]
[334798865,1723581049259,-151.0,0.00014246,2]
[334798866,1723581049270,-592.892538,0.00014246,2]
[334798867,1723581049280,-592.892538,0.00014246,2]
[334798868,1723581049291,-500.0,0.00014246,2]
[334798869,1723581049302,-506.69,0.00014246,2]
[334798870,1723581049313,-500.0,0.00014246,2]
[334798871,1723581049327,-255.09215235,0.00014246,2]
[334798872,1723581049337,-500.0,0.00014246,2]
[334798873,1723581049348,-500.0,0.00014246,2]
[334798874,1723581049359,-500.0,0.00014246,2]
[334798875,1723581049370,-500.0,0.00014246,2]
[334798876,1723581049381,-500.0,0.00014246,2]
[334798877,1723581049393,-152.935401,0.00014246,2]
[334798878,1723581049404,-152.935401,0.00014246,2]
[334798879,1723581049414,-151.0,0.00014246,2]
[334798880,1723581049425,-500.0,0.00014246,2]
[334798881,1723581049436,-492.53926177,0.00014246,2]
[334798882,1723581049454,-7.46073823,0.00014246,2]
[334798883,1723581049465,-500.0,0.00014246,2]
[334798884,1723581049476,-500.0,0.00014246,2]
[334798885,1723581049488,-500.0,0.00014246,2]
[334798886,1723581049501,-151.340375,0.00014246,2]
[334798887,1723581049512,-151.0,0.00014246,2]
[334798888,1723581049524,-500.0,0.00014246,2]
[334798889,1723581049536,-1046.732,0.00014246,2]
[334798890,1723581049546,-1046.732,0.00014246,2]
[334798891,1723581049558,-500.0,0.00014246,2]
[334798892,1723581049569,-637.54683213,0.00014246,2]
[334798893,1723581049753,-500.0,0.00014246,2]
[334798894,1723581049768,-500.0,0.00014246,2]
[334798895,1723581049779,-151.0,0.00014246,2]
[334798896,1723581049790,-151.0,0.00014246,2]
[334798897,1723581049801,-2011.551166,0.00014246,2]
[334798898,1723581049811,-2011.551166,0.00014246,2]
[334798899,1723581049821,-500.0,0.00014246,2]
[334798900,1723581049832,-271.099893,0.00014246,2]
[334798901,1723581049843,-585.23591944,0.00014246,2]
[334798902,1723581049853,-271.099893,0.00014246,2]
[334798903,1723581049864,-500.0,0.00014246,2]
[334798904,1723581049874,-151.0,0.00014246,2]
[334798905,1723581049885,-500.0,0.00014246,2]
[334798906,1723581049894,-206.254125,0.00014246,2]
[334798907,1723581049903,-231.074624,0.00014246,2]
[334798908,1723581049914,-151.0,0.00014246,2]
[334798909,1723581049923,-1181.026248,0.00014246,2]
[334798910,1723581049933,-206.254125,0.00014246,2]
[334798911,1723581049943,-151.0,0.00014246,2]
[334798912,1723581049953,-1181.026248,0.00014246,2]
[334798913,1723581049963,-500.0,0.00014246,2]
[334798914,1723581049972,-151.0,0.00014246,2]
[334798915,1723581049982,-500.0,0.00014246,2]
[334798916,1723581049993,-1399.82,0.00014246,2]
[334798917,1723581050003,-169.950787,0.00014246,2]
[334798918,1723581050012,-169.950787,0.00014246,2]
[334798919,1723581050021,-616.01,0.00014246,2]
[334798920,1723581050030,-500.0,0.00014246,2]
[334798921,1723581050040,-1514.14,0.00014246,2]
[334798922,1723581050049,-500.0,0.00014246,2]
[334798923,1723581050058,-500.0,0.00014246,2]
[334798924,1723581050068,-500.0,0.00014246,2]
[334798925,1723581050077,-576.922845,0.00014246,2]
[334798926,1723581050086,-500.0,0.00014246,2]
[334798927,1723581050095,-576.922845,0.00014246,2]
[334798928,1723581050104,-500.0,0.00014246,2]
[334798929,1723581050114,-536.12,0.00014246,2]
[334798930,1723581050123,-686.668645,0.00014246,2]
[334798931,1723581050132,-641.592727,0.00014246,2]
[334798932,1723581050142,-686.668645,0.00014246,2]
[334798933,1723581050151,-500.0,0.00014246,2]
[334798934,1723581050160,-641.592727,0.00014246,2]
[334798935,1723581050171,-568.59,0.00014246,2]
[334798936,1723581050180,-1514.77,0.00014246,2]
[334798937,1723581050189,-151.0,0.00014246,2]
[334798938,1723581050198,-286.838638,0.00014246,2]
[334798939,1723581050208,-500.0,0.00014246,2]
[334798940,1723581050217,-2536.545615,0.00014246,2]
[334798941,1723581050226,-500.0,0.00014246,2]
[334798942,1723581050235,-565.43,0.00014246,2]
[334798943,1723581050245,-2536.545615,0.00014246,2]
[334798944,1723581050254,-350.29180643,0.00014246,2]
[334799073,1723582238046,-223.38199524,9.999e-05,2]
[334799075,1723582238056,-665.04001235,9.999e-05,2]
[334799077,1723582238066,-180.67948358,9.999e-05,2]
[334799079,1723582238075,-314.85829724,9.999e-05,2]
[334799122,1723582240103,-494.63445441,9.999e-05,2]
[334799124,1723582240112,-207.1566403,9.999e-05,2]
[334799127,1723582240122,-95.86928106,9.999e-05,2]
[334799237,1723582243105,-632.47933733,9.999e-05,2]
[334799238,1723582243115,-694.90272385,9.999e-05,2]
[334799239,1723582243125,-850.36837131,9.999e-05,2]
[334799240,1723582243135,-154.79103211,9.999e-05,2]
[334799241,1723582243145,-636.72640188,9.999e-05,2]
[334799242,1723582243155,-155.46941573,9.999e-05,2]
[334799243,1723582243165,-157.00320308,9.999e-05,2]
[334799245,1723582243175,-155.13366212,9.999e-05,2]
[334799247,1723582243185,-63.12585259,9.999e-05,2]
[334799250,1723582243197,-610.27396543,9.999e-05,2]
[334799251,1723582243206,-846.46724827,9.999e-05,2]
[334799252,1723582243215,-569.05372197,9.999e-05,2]
[334799253,1723582243226,-155.37836526,9.999e-05,2]
[334799254,1723582243235,-156.05197447,9.999e-05,2]
[334799255,1723582243246,-209.99150853,9.999e-05,2]
[334799256,1723582243255,-494.54531599,9.999e-05,2]
[334799257,1723582243264,-288.10768054,0.0001,2]
[334799258,1723582243274,-3434.83198901,0.00012039,2]
[334799259,1723582243286,-3624.81288089,0.00012039,2]
[334799260,1723582243296,-187.500004,0.00012258,2]
[334799261,1723582243306,-187.500004,0.00012578,2]
[334799262,1723582243315,-187.500004,0.00012897,2]
[334799263,1723582243324,-500.0,0.00012986,2]
[334799264,1723582243334,-4298.96877295,0.00013488,2]
[334799265,1723582243343,-14964.65129249,0.00013588,2]
[334799279,1723582246094,-26461.99365595,0.00013588,2]
[334799280,1723582246104,-1545.30291627,0.00013598,2]
[334799281,1723582246114,-150.112233,0.000136,2]
[334799282,1723582246124,-200.0,0.00013673,2]
[334799283,1723582246135,-200.0,0.00013673,2]
[334799284,1723582246147,-200.0,0.00013673,2]
[334799286,1723582246159,-200.0,0.00013673,2]
[334799288,1723582246171,-200.0,0.00013673,2]
[334799290,1723582246181,-200.0,0.00013673,2]
[334799291,1723582246192,-200.0,0.00013673,2]
[334799292,1723582246203,-21231.85995103,0.00013688,2]
[334799293,1723582246213,-266526.12185016,0.00013688,2]
[334799337,1723583314021,1355.82135852,0.00025,60]
[334799382,1723583432143,-154.98751606,9.999e-05,2]
[334799384,1723583432153,-189.9631639,9.999e-05,2]
[334799386,1723583432165,-180.86518133,9.999e-05,2]
[334799389,1723583432176,-155.15250678,9.999e-05,2]
[334799391,1723583432188,-157.14199098,9.999e-05,2]
[334799393,1723583432200,-301.33703286,9.999e-05,2]
[334799395,1723583432211,-636.72640188,9.999e-05,2]
[334799397,1723583432222,-157.90795043,9.999e-05,2]
[334799399,1723583432232,-223.38199524,9.999e-05,2]
[334799404,1723583432242,-845.99601789,9.999e-05,2]
[334799407,1723583432252,-268.69834301,0.0001,2]
[334799410,1723583432262,-500.0,0.00012986,2]
[334799413,1723583432273,-5323.40502986,0.00013233,2]
[334799416,1723583432282,-150.0,0.00013361,2]
[334799419,1723583432294,-3761.59767634,0.00013573,2]
[334799422,1723583432305,-728.15304795,0.00013582,2]
[334799425,1723583432317,-6264.67185218,0.00013598,2]
[334799602,1723583443247,-5812.51622582,0.00013598,2]
[334799603,1723583443259,-5214.28606345,0.00013598,2]
[334799604,1723583443359,-255.0,0.00013598,2]
[334799620,1723583446376,-71341.52585855,0.00013598,2]
[334799621,1723583446388,-200.0,0.00013673,2]
[334799622,1723583446399,-200.0,0.00013673,2]
[334799623,1723583446408,-200.0,0.00013673,2]
[334799624,1723583446419,-200.0,0.00013673,2]
[334799625,1723583446429,-91626.3833183,0.00013678,2]
[334799626,1723583446439,-10615.92997551,0.00013688,2]
[334799627,1723583446452,-3446.11268145,0.00013688,2]
[334799628,1723583446464,-1670.74719108,0.00013688,2]
[334799629,1723583446476,-271.18563857,0.00013688,2]
[334799630,1723583446486,-22201.92556095,0.00013688,2]
[334799688,1723584632363,-356.21832177,9.999e-05,2]
[334799689,1723584632375,-253.53876419,9.999e-05,2]
[334799690,1723584632387,-3152.54802978,0.000125,2]
[334799691,1723584632396,-500.0,0.00012986,2]
[334799692,1723584632408,-1830.39155426,0.00013245,2]
[334799694,1723584638774,-3493.0134756,0.00013245,2]
[334799695,1723584638786,-5307.96498776,0.00013688,2]
[334799696,1723584638796,-8300.89257038,0.00013688,2]
[334799697,1723584638806,-158.63524894,0.00013688,2]
[334799698,1723584638816,-404.44105083,0.00013688,2]
[334799699,1723584638826,-218.37288986,0.00013688,2]
[334799700,1723584638837,-3852.75061317,0.00013688,2]
[334799701,1723584638847,-1384.50193288,0.00013688,2]
[334799702,1723584638859,-1446.44722116,0.00013688,2]
[334799703,1723584638870,-1413.68526537,0.00013688,2]
[334799704,1723584638881,-1916.02568808,0.00013688,2]
[334799706,1723584638893,-5029.92097977,0.00013688,2]
[334799708,1723584638905,-1670.74719108,0.00013688,2]
[334799709,1723584638917,-276933.399958,0.00013688,2]
[334799710,1723584638928,-500.0,0.00013698,2]
[334799711,1723584638938,-214.72292102,0.00013698,2]
[334799712,1723584638950,-500.0,0.00013698,2]
[334799713,1723584638961,-500.0,0.00013698,2]
[334799714,1723584638970,-500.0,0.00013698,2]
[334799715,1723584638980,-500.0,0.00013698,2]
[334799716,1723584638989,-500.0,0.00013698,2]
[334799717,1723584639001,-500.0,0.00013698,2]
[334799718,1723584639010,-500.0,0.00013698,2]
[334799719,1723584639020,-509.54154485,0.00013698,2]
[334799720,1723584639029,-587.56877707,0.00013698,2]
[334799721,1723584639039,-500.0,0.00013698,2]
[334799722,1723584639050,-202.80114045,0.00013698,2]